bitfinex/quotes_BTCUSD_20250421
["timestamp","ask_amount","ask_price","bid_price","bid_amount"]
[1745195216409,0.01650497,85800.0,85799.0,0.25628791]
[1745195217451,0.01650497,85800.0,85799.0,0.13684]
[1745195218728,0.004,85809.0,85799.0,0.13684]
[1745195218962,0.12044791,85800.0,85799.0,0.13684]
[1745195219196,0.12044791,85800.0,85781.0,0.00044836]
[1745195219197,0.01165528,85798.0,85781.0,0.00044836]
[1745195219420,0.09339412,85789.0,85781.0,0.00044836]
[1745195219627,0.11944791,85788.0,85781.0,0.00044836]
[1745195220276,0.0498,85787.0,85781.0,0.00044836]
[1745195220532,0.11944791,85784.0,85781.0,0.00044836]
[1745195220760,0.0289,85783.0,85767.0,0.1368]
[1745195220980,0.11944791,85779.0,85767.0,0.13724846]
[1745195221443,0.11944791,85778.0,85767.0,0.13724846]
[1745195221649,0.011,85800.0,85768.0,0.21517394]
[1745195221853,0.011,85800.0,85770.0,0.57212361]
[1745195222082,0.011,85800.0,85770.0,0.11944791]
[1745195222285,0.011,85800.0,85771.0,0.00790959]
[1745195222493,0.011,85800.0,85772.0,0.11944791]
[1745195223012,0.011,85800.0,85773.0,0.11944791]
[1745195223218,0.011,85800.0,85774.0,0.01024055]
[1745195223421,0.011,85800.0,85775.0,0.11944791]
[1745195223716,0.011,85800.0,85774.0,0.01024055]
[1745195223717,0.004,85839.0,85799.0,0.16924791]
[1745195223927,0.0107937,85811.0,85803.0,0.11944791]
[1745195224139,0.0107937,85811.0,85804.0,0.1372]
[1745195224378,0.0107937,85811.0,85805.0,0.12177834]
[1745195224581,0.0107937,85811.0,85806.0,0.00790959]
[1745195224787,0.00497915,85811.0,85807.0,0.11944791]
[1745195224989,0.09339412,85836.0,85806.0,0.12780596]
[1745195225142,0.09339412,85827.0,85807.0,0.11944791]
[1745195225345,0.09339412,85836.0,85808.0,0.00790959]
[1745195225543,0.004,85839.0,85808.0,0.00790959]
[1745195225544,0.004,85839.0,85810.0,0.34]
[1745195225762,0.004,85839.0,85811.0,0.11944791]
[1745195225970,0.004,85839.0,85812.0,0.13716]
[1745195226164,0.004,85839.0,85821.0,0.09339412]
[1745195226369,0.004,85839.0,85834.0,0.34]
[1745195226528,0.004,85839.0,85834.0,0.45944791]
[1745195226740,0.004,85839.0,85834.0,0.25660791]
[1745195226940,0.002,85840.0,85834.0,0.25660791]
[1745195227143,0.002,85840.0,85835.0,0.00790959]
[1745195227351,0.002,85840.0,85810.0,0.4526757]
[1745195227352,0.002,85840.0,85836.0,0.13716]
[1745195227571,0.003,85840.0,85837.0,0.13716]
[1745195227781,0.003,85840.0,85838.0,0.13716]
[1745195227991,0.003,85840.0,85811.0,0.34]
[1745195228191,0.003,85840.0,85823.0,0.1]
[1745195228396,0.003,85840.0,85830.0,0.4526757]
[1745195228606,0.003,85840.0,85831.0,0.2589375]
[1745195228844,0.003,85840.0,85831.0,0.25660791]
[1745195229219,0.003,85840.0,85832.0,0.13716]
[1745195230091,0.003,85840.0,85833.0,0.13716]
[1745195230580,0.003,85840.0,85830.0,0.00044846]
[1745195230758,0.003,85840.0,85834.0,0.13716]
[1745195231005,0.003,85840.0,85790.0,0.4526757]
[1745195231006,0.22971245,85839.0,85787.0,0.0479]
[1745195231211,0.01454085,85819.0,85807.0,0.1]
[1745195231418,0.4526757,85820.0,85800.0,0.99864925]
[1745195231419,0.01454085,85807.0,85800.0,0.99864925]
[1745195231627,0.01454085,85807.0,85781.0,0.004]
[1745195231628,0.23312502,85791.0,85781.0,0.004]
[1745195231834,0.01687042,85790.0,85787.0,0.13712]
[1745195232037,0.01454085,85788.0,85787.0,0.13712]
[1745195232245,0.13398876,85788.0,85787.0,0.13712]
[1745195232457,0.001,85815.0,85787.0,0.13712]
[1745195232458,0.4526757,85810.0,85787.0,0.13712]
[1745195232661,0.01454085,85808.0,85781.0,0.00445008]
[1745195232875,0.01454085,85806.0,85788.0,0.13712]
[1745195233076,0.01454085,85804.0,85781.0,0.00445008]
[1745195233279,0.01454085,85802.0,85789.0,0.13712]
[1745195233484,0.12177748,85801.0,85789.0,0.13712]
[1745195236565,0.0004194,85825.0,85797.0,0.25660791]
[1745195236983,0.0004194,85825.0,85797.0,0.25666564]
[1745195237725,0.0004194,85825.0,85797.0,0.13721773]
[1745195237726,0.11944791,85824.0,85797.0,0.13721773]
[1745195237940,0.01454085,85823.0,85797.0,0.13721773]
[1745195238172,0.09339412,85814.0,85797.0,0.13721773]
[1745195238335,0.09339412,85814.0,85757.0,0.0479]
[1745195238336,0.01454085,85804.0,85757.0,0.0479]
[1745195238536,0.01454085,85799.0,85758.0,0.11944791]
[1745195238736,0.01454085,85789.0,85757.0,0.00044942]
[1745195239089,0.11944791,85788.0,85758.0,0.12177961]
[1745195239639,0.01454085,85799.0,85758.0,0.11944791]
[1745195239843,0.11944791,85798.0,85758.0,0.11944791]
[1745195241251,0.0491,85831.0,85771.0,0.34]
[1745195241471,0.0528,85839.0,85783.0,0.34]
[1745195241669,0.0528,85839.0,85785.0,0.34]
[1745195241926,0.0528,85839.0,85788.0,0.1]
[1745195242292,0.0004194,85823.0,85790.0,0.1]
[1745195242521,0.0004194,85823.0,85791.0,0.21944791]
[1745195243110,0.0004194,85823.0,85792.0,0.00233052]
[1745195243301,0.0004194,85823.0,85793.0,0.11944791]
[1745195243521,0.0004194,85823.0,85794.0,0.00233024]
[1745195243746,0.0004194,85823.0,85800.0,0.4526757]
[1745195243891,0.0004194,85823.0,85804.0,0.11944791]
[1745195244509,0.0004194,85823.0,85805.0,0.1]
[1745195244711,0.004,85839.0,85806.0,0.11944791]
[1745195244906,0.09339412,85838.0,85806.0,0.21944791]
[1745195245109,0.09339412,85829.0,85806.0,0.1]
[1745195245311,0.09339412,85829.0,85807.0,1.13504]
[1745195245514,0.11944791,85837.0,85807.0,1.25448791]
[1745195246149,0.09339412,85829.0,85807.0,1.13504]
[1745195246366,0.13398876,85828.0,85807.0,0.99788]
[1745195246566,0.09339412,85808.0,85807.0,0.99788]
[1745195246921,0.01454085,85807.0,85796.0,0.14212]
[1745195247130,0.01454085,85797.0,85768.0,0.00044942]
[1745195247344,0.01454085,85795.0,85773.0,0.1]
[1745195247526,0.01454085,85793.0,85773.0,0.1]
[1745195247697,0.01454085,85791.0,85773.0,0.1]
[1745195247906,0.01454085,85789.0,85773.0,0.1]
[1745195248266,0.09339412,85778.0,85773.0,0.00044942]
[1745195248468,0.01454085,85777.0,85773.0,0.00044942]
[1745195249228,0.11944791,85776.0,85773.0,0.00044942]
[1745195249452,0.01454085,85775.0,85773.0,0.00044942]
[1745195249672,0.13398876,85774.0,85773.0,0.00044942]
[1745195250933,0.12044791,85774.0,85773.0,0.00044942]
[1745195251138,0.11944791,85774.0,85773.0,0.00044942]
[1745195251338,0.13498876,85774.0,85773.0,0.00044942]
[1745195253885,0.01454085,85773.0,85751.0,0.00085211]
[1745195254028,0.01454085,85769.0,85751.0,0.00085211]
[1745195254230,0.11944791,85768.0,85751.0,0.00085211]
[1745195254441,0.01454085,85769.0,85739.0,0.0008388]
[1745195254442,0.01454085,85756.0,85739.0,0.0008388]
[1745195254620,0.11944791,85755.0,85739.0,0.0008388]
[1745195254821,0.4526757,85780.0,85739.0,0.0008388]
[1745195255051,0.01454085,85772.0,85740.0,0.00233244]
[1745195255250,0.11944791,85771.0,85741.0,1.1404]
[1745195255472,0.11944791,85771.0,85742.0,0.00233214]
[1745195255667,0.11944791,85771.0,85744.0,0.34]
[1745195255923,0.11944791,85771.0,85745.0,0.00233202]
[1745195256126,0.049,85798.0,85746.0,0.12177993]
[1745195256699,0.0476,85806.0,85751.0,0.1]
[1745195256894,0.0476,85806.0,85752.0,0.12177953]
[1745195257276,0.0476,85806.0,85753.0,0.1]
[1745195257496,0.0476,85806.0,85754.0,0.12177953]
[1745195257909,0.0476,85806.0,85754.0,0.11944791]
[1745195258110,0.004,85809.0,85764.0,0.11944791]
[1745195258312,0.004,85809.0,85760.0,0.4526757]
[1745195258313,0.004,85809.0,85769.0,0.1]
[1745195258530,0.004,85809.0,85770.0,0.26160791]
[1745195258731,0.004,85809.0,85773.0,0.1]
[1745195258863,0.004,85809.0,85774.0,0.12177869]
[1745195259670,0.004,85809.0,85773.0,0.00010539]
[1745195259671,0.004,85809.0,85781.0,0.34]
[1745195259875,0.004,85809.0,85791.0,0.34]
[1745195260084,0.0549,85822.0,85793.0,0.55944791]
[1745195260289,0.0549,85822.0,85801.0,0.34]
[1745195260505,0.0549,85822.0,85805.0,0.1]
[1745195260703,0.0549,85822.0,85805.0,0.21944791]
[1745195260928,0.0549,85822.0,85806.0,0.46177819]
[1745195261137,0.0549,85822.0,85808.0,0.34]
[1745195261338,0.0549,85822.0,85813.0,0.1]
[1745195261562,0.0549,85822.0,85815.0,0.34]
[1745195261765,0.0586814,85822.0,85817.0,0.34]
[1745195262189,0.0586814,85822.0,85816.0,0.14212]
[1745195262190,0.0586814,85822.0,85819.0,0.34]
[1745195262402,0.0586814,85822.0,85821.0,0.34]
[1745195262985,0.0586814,85822.0,85821.0,0.50464791]
[1745195263394,0.0586814,85822.0,85821.0,0.60156791]
[1745195264189,0.0586814,85822.0,85821.0,0.45944791]
[1745195264426,0.0586814,85822.0,85821.0,0.14212]
[1745195264600,0.0586814,85822.0,85808.0,0.02679553]
[1745195264755,0.0586814,85822.0,85821.0,0.14212]
[1745195264957,0.0586814,85822.0,85821.0,0.26156791]
[1745195265390,0.0037814,85822.0,85821.0,0.14212]
[1745195265587,0.0008814,85840.0,85821.0,0.14212]
[1745195265794,0.0008814,85840.0,85822.0,0.12177795]
[1745195265995,0.0008814,85840.0,85823.0,0.00232979]
[1745195266171,0.0008814,85840.0,85823.0,0.11944791]
[1745195266696,0.0008814,85840.0,85824.0,0.34]
[1745195267784,0.0008814,85840.0,85821.0,0.14212]
[1745195268618,0.00074067,85840.0,85822.0,0.00233002]
[1745195268817,0.00074067,85840.0,85823.0,0.34]
[1745195269024,0.001,85836.0,85824.0,1.13976]
[1745195269241,0.001,85836.0,85825.0,0.14208]
[1745195270512,0.001,85829.0,85825.0,0.14208]
[1745195270879,0.001,85837.0,85825.0,0.14208]
[1745195271129,0.00074067,85840.0,85826.0,0.18960791]
[1745195271564,0.004,85839.0,85826.0,0.1919374]
[1745195272428,0.004,85839.0,85826.0,0.18971332]
[1745195273285,0.004,85839.0,85831.0,0.07016]
[1745195273485,0.004,85839.0,85833.0,0.07016]
[1745195273703,0.004,85839.0,85826.0,0.00010541]
[1745195273704,0.004,85839.0,85836.0,0.07016]
[1745195273917,0.004,85839.0,85838.0,0.41016]
[1745195274120,0.004,85839.0,85838.0,0.52960791]
[1745195274324,0.0025,85839.0,85838.0,0.65260791]
[1745195274529,0.0025,85839.0,85838.0,0.52960791]
[1745195274741,0.5,85855.0,85841.0,0.41016]
[1745195274985,0.5,85855.0,85854.0,0.52960791]
[1745195274986,0.46254,85855.0,85854.0,0.52960791]
[1745195275175,0.40293141,85855.0,85854.0,0.52960791]
[1745195275396,0.01456712,85855.0,85854.0,1.52708791]
[1745195275595,0.05,85913.0,85856.0,0.0694196]
[1745195275799,0.09339412,85905.0,85877.0,0.4086792]
[1745195276006,0.09289412,85905.0,85889.0,0.4086792]
[1745195276262,0.09289412,85905.0,85891.0,0.34]
[1745195276477,0.09289412,85905.0,85894.0,0.45944791]
[1745195276478,0.00045039,85905.0,85894.0,0.45944791]
[1745195276690,0.00045039,85905.0,85890.0,0.5947157]
[1745195276691,0.01,85930.0,85903.0,0.34]
[1745195276904,0.009,85930.0,85905.0,0.34]
[1745195277110,0.009,85930.0,85907.0,0.45944791]
[1745195277538,0.009,85930.0,85890.0,0.14249039]
[1745195277539,0.009,85930.0,85921.0,0.11944791]
[1745195277541,0.09339412,85915.0,85913.0,0.1]
[1745195277795,0.009,85930.0,85914.0,0.26292791]
[1745195278142,0.0130165,85954.0,85927.0,0.11944791]
[1745195278353,0.0130165,85954.0,85939.0,0.4526757]
[1745195278555,0.05,85978.0,85941.0,0.1]
[1745195278759,0.05,85978.0,85944.0,0.1]
[1745195278963,0.05,85980.0,85949.0,0.1]
[1745195279166,0.0234864,85987.0,85969.0,0.11944791]
[1745195279375,0.09339412,85986.0,85969.0,1.25968791]
[1745195279580,0.09339412,85986.0,85969.0,1.11628791]
[1745195279787,0.0234864,85987.0,85969.0,1.25968791]
[1745195279997,0.02141327,85987.0,85986.0,0.11944791]
[1745195280670,0.02341327,85987.0,85986.0,0.14350541]
[1745195280876,0.02341327,85987.0,85986.0,0.26295332]
[1745195281101,0.005,85997.0,85987.0,0.34]
[1745195281316,0.05073,86000.0,85989.0,0.34]
[1745195281521,0.005,86006.0,85999.0,0.45944791]
[1745195281729,0.005,86006.0,85989.0,0.44]
[1745195281730,0.1,86022.0,86006.0,0.34]
[1745195281947,0.01696,86036.0,86019.0,0.34]
[1745195282182,0.01696,86036.0,86029.0,0.11944791]
[1745195282403,0.01696,86036.0,86030.0,0.00232416]
[1745195282609,0.01696,86036.0,86034.0,0.11944791]
[1745195283290,0.01741124,86036.0,86035.0,0.11944791]
[1745195283492,0.09339412,86048.0,86035.0,0.11944791]
[1745195283742,0.09339412,86048.0,86035.0,0.11955332]
[1745195284357,0.09339412,86048.0,86035.0,0.00010541]
[1745195284358,0.09339412,86039.0,86035.0,0.00010541]
[1745195284567,0.09327867,86039.0,86035.0,0.00010541]
[1745195284774,0.09439412,86048.0,86035.0,0.00010541]
[1745195285066,0.09339412,86039.0,86035.0,0.00010541]
[1745195285275,0.09339412,86036.0,86035.0,0.00010541]
[1745195285499,0.31084203,86036.0,86035.0,0.14338541]
[1745195285946,0.01454085,86035.0,86025.0,0.996]
[1745195286160,0.01454085,86025.0,86016.0,0.14328]
[1745195286368,0.01454085,86014.0,85991.0,0.00445124]
[1745195286573,0.098,85992.0,85952.0,0.0008366]
[1745195286791,0.4526757,85971.0,85952.0,0.0008366]
[1745195286994,0.01454085,85969.0,85952.0,0.0008366]
[1745195287200,0.12177889,85968.0,85952.0,0.0008366]
[1745195287403,0.098,85970.0,85962.0,0.00232646]
[1745195287829,0.4526757,85990.0,85952.0,0.0008366]
[1745195288034,0.12004147,85989.0,85952.0,0.0008366]
[1745195288656,0.4526757,86040.0,85970.0,0.57212361]
[1745195288898,0.23236887,86071.0,85962.0,0.09572043]
[1745195288899,0.11944791,86035.0,85991.0,0.34]
[1745195289124,0.001,86048.0,86012.0,0.1]
[1745195289349,0.001,86048.0,86013.0,0.34232435]
[1745195289609,0.11944791,86047.0,86015.0,0.34]
[1745195289859,0.001,86048.0,85990.0,0.4526757]
[1745195289860,0.001,86048.0,86021.0,0.34]
[1745195290092,0.001,86048.0,86023.0,0.34]
[1745195290302,0.001,86048.0,86029.0,0.45944791]
[1745195290512,0.0014513,86048.0,86031.0,0.34]
[1745195290722,0.0014513,86048.0,85997.0,0.05]
[1745195290723,0.09339412,86044.0,85987.0,0.00880104]
[1745195290928,0.0014513,86048.0,86022.0,0.1]
[1745195290929,0.00059356,86046.0,86022.0,0.1]
[1745195291143,0.0014513,86048.0,86023.0,0.00232443]
[1745195291349,0.0014513,86048.0,86000.0,0.7926757]
[1745195291559,0.0014513,86048.0,86011.0,0.1]
[1745195291773,0.00306448,86049.0,86034.0,0.11944791]
[1745195292625,0.0494183,86067.0,86047.0,0.4526757]
[1745195292833,0.0464183,86067.0,86057.0,0.4526757]
[1745195293046,0.01175558,86091.0,86064.0,0.11944791]
[1745195293260,0.01175558,86091.0,86079.0,0.4526757]
[1745195293494,0.0364,86089.0,86079.0,0.4526757]
[1745195293736,0.0364,86089.0,86079.0,0.5792252]
[1745195294144,0.01175558,86091.0,86088.0,0.11944791]
[1745195294374,0.01175558,86091.0,86090.0,0.11944791]
[1745195294586,0.0004183,86102.0,86090.0,0.22177012]
[1745195294821,0.09339412,86143.0,86102.0,0.34]
[1745195295046,0.09339412,86127.0,86108.0,0.11944791]
[1745195295270,0.09339412,86127.0,86075.0,0.15]
[1745195295271,0.09339412,86127.0,86111.0,0.34]
[1745195295512,0.08639412,86143.0,86113.0,0.34]
[1745195295720,0.07364692,86156.0,86123.0,0.11944791]
[1745195295721,0.09339412,86142.0,86123.0,0.11944791]
[1745195296165,0.09339412,86132.0,86109.0,0.99524]
[1745195296415,0.09339412,86111.0,86090.0,0.00011061]
[1745195296623,0.09339412,86111.0,86042.0,0.0479]
[1745195296624,0.01513441,86110.0,86096.0,0.99524]
[1745195296839,0.09339412,86111.0,86097.0,0.14848]
[1745195297066,0.01513441,86110.0,86051.0,0.004]
[1745195297304,0.09339412,86086.0,86084.0,0.99524]
[1745195297521,0.11944791,86085.0,86084.0,0.99524]
[1745195297731,0.11944791,86085.0,86084.0,1.14368]
[1745195297956,0.00059356,86088.0,86084.0,1.14368]
[1745195298168,0.0481,86090.0,86084.0,0.99524]
[1745195298367,0.11944791,86087.0,86085.0,0.14844]
[1745195298588,0.0481,86090.0,86085.0,0.14844]
[1745195298805,0.0499,86103.0,86084.0,0.99524]
[1745195298806,0.0499,86103.0,86086.0,0.14844]
[1745195299044,0.0494,86111.0,86086.0,0.14844]
[1745195299250,0.0456,86140.0,86094.0,0.34]
[1745195299463,0.0456,86140.0,86086.0,0.00232244]
[1745195299464,0.00059356,86139.0,86070.0,0.60530616]
[1745195299675,0.00059356,86139.0,86045.0,0.14339412]
[1745195299676,1.101e-05,86084.0,86071.0,0.34]
[1745195299901,1.101e-05,86084.0,86082.0,0.99468]
[1745195300120,1.101e-05,86084.0,86040.0,0.60530616]
[1745195300121,1.101e-05,86084.0,86081.0,0.00411552]
[1745195300336,0.11945892,86084.0,86082.0,0.15344]
[1745195300756,0.11944791,86083.0,86081.0,0.00411552]
[1745195300959,0.13458232,86083.0,86082.0,0.15344]
[1745195301610,0.13398876,86083.0,86082.0,0.15344]
[1745195301736,0.13398876,86083.0,86081.0,0.00411552]
[1745195301941,0.00059356,86082.0,86081.0,0.00411552]
[1745195302143,0.12004147,86082.0,86081.0,0.15755552]
[1745195302344,0.11944791,86082.0,86081.0,0.15755552]
[1745195304706,0.01454085,86081.0,86080.0,0.15344]
[1745195304927,0.13398876,86081.0,86080.0,0.15344]
[1745195305388,0.01454085,86079.0,86070.0,0.00013399]
[1745195305610,0.0456,86080.0,85946.0,0.31400583]
[1745195305611,0.01161939,86063.0,86044.0,0.15344]
[1745195305816,0.01454085,86044.0,86042.0,0.15344]
[1745195306024,0.18398232,86043.0,86042.0,0.1535741]
[1745195306239,0.16576097,86043.0,86042.0,0.1535741]
[1745195306487,0.0083,86071.0,86042.0,0.1535741]
[1745195306488,0.00059356,86059.0,86042.0,0.1535741]
[1745195306830,0.11944791,86043.0,86042.0,0.1535741]
[1745195307386,0.13398876,86043.0,86042.0,0.0001341]
[1745195307636,0.01454085,86042.0,86030.0,0.99468]
[1745195307858,0.01454085,86032.0,86031.0,0.15344]
[1745195308097,0.11944791,86032.0,86031.0,0.15344]
[1745195308317,0.13398876,86032.0,86031.0,0.15344]
[1745195308539,0.0492,86064.0,86031.0,0.24683412]
[1745195308804,0.0492,86082.0,86060.0,0.09339412]
[1745195309030,0.0492,86100.0,86060.0,0.09339412]
[1745195309265,0.11944791,86098.0,86061.0,0.15348]
[1745195309491,0.00059356,86099.0,86051.0,0.09339412]
[1745195309492,0.11944791,86083.0,86051.0,0.09339412]
[1745195309709,0.00059356,86082.0,86052.0,0.15348]
[1745195309928,0.11944791,86081.0,86052.0,0.15348]
[1745195310145,0.01513441,86080.0,86052.0,0.15348]
[1745195310354,0.01454085,86078.0,86051.0,0.09339412]
[1745195310578,0.11944791,86077.0,86053.0,0.15348]
[1745195310787,0.12004147,86077.0,86054.0,0.00232364]
[1745195311006,0.12004147,86077.0,86053.0,0.15348]
[1745195311224,0.01454085,86076.0,86053.0,0.15748]
[1745195311434,0.12004147,86075.0,86054.0,0.00232397]
[1745195311639,0.12004147,86075.0,86053.0,0.15748]
[1745195311640,0.11944791,86075.0,86053.0,0.15748]
[1745195312087,0.00059356,86074.0,86053.0,0.15748]
[1745195312510,0.00059356,86074.0,86054.0,0.34]
[1745195312924,0.11944791,86073.0,86054.0,0.34]
[1745195313583,0.00059356,86072.0,86054.0,0.34]
[1745195313799,0.11944791,86071.0,86054.0,0.34]
[1745195314006,0.00059356,86070.0,86054.0,0.34]
[1745195314219,0.11944791,86069.0,86054.0,0.34]
[1745195314467,0.01,86078.0,86056.0,0.34]
[1745195314671,0.01,86078.0,86058.0,0.34]
[1745195315103,0.01,86078.0,86060.0,0.34]
[1745195315301,0.01,86078.0,86060.0,0.45944791]
[1745195315509,0.01,86078.0,86060.0,0.11944791]
[1745195315930,0.01,86078.0,86061.0,0.15348]
[1745195316137,0.01454085,86067.0,86062.0,0.15348]
[1745195316368,0.12004147,86066.0,86062.0,0.15348]
[1745195316567,0.12004147,86066.0,86054.0,0.001]
[1745195316568,0.01454085,86062.0,86054.0,0.001]
[1745195316776,0.4026097,86062.0,86025.0,0.0008422]
[1745195317014,0.44847288,86040.0,86033.0,0.15348]
[1745195317228,0.44847288,86040.0,86033.0,0.16510344]
[1745195317229,0.11944791,86034.0,86033.0,0.16510344]
[1745195317640,0.10761517,86034.0,86033.0,0.16510344]
[1745195318466,0.02143401,86062.0,86033.0,0.15448]
[1745195318679,0.0464,86065.0,86035.0,0.09339412]
[1745195318885,0.0464,86065.0,86033.0,0.001]
[1745195318886,0.11944791,86062.0,86033.0,0.001]
[1745195319097,0.01454085,86049.0,86036.0,0.15348]
[1745195319508,0.01454085,86047.0,86037.0,0.15348]
[1745195319929,0.01454085,86047.0,86036.0,0.15348]
[1745195320157,0.01454085,86047.0,86033.0,0.001]
[1745195320352,0.01454085,86047.0,86034.0,0.15348]
[1745195321383,0.44847288,86035.0,86025.0,0.0002935]
[1745195321607,0.01454085,86034.0,86025.0,0.0002935]
[1745195321812,0.01454085,86018.0,85973.0,0.0008388]
[1745195322021,0.13398876,86014.0,85973.0,0.0008388]
[1745195322255,0.01454085,86007.0,85973.0,0.0008388]
[1745195322466,0.01162682,86008.0,85973.0,0.0008388]
[1745195322467,0.13398876,85997.0,85973.0,0.0008388]
[1745195322684,0.01454085,85982.0,85973.0,0.0008388]
[1745195322895,0.01454085,85975.0,85973.0,0.0008388]
[1745195323105,0.36661722,85974.0,85973.0,0.0008388]
[1745195323332,0.13398876,85974.0,85961.0,0.004]
[1745195323548,0.13398876,85967.0,85961.0,0.004]
[1745195323761,0.01454085,85961.0,85914.0,0.09339412]
[1745195323991,0.01454085,85951.0,85923.0,0.09339412]
[1745195324208,0.11944791,85950.0,85924.0,0.00232749]
[1745195324420,0.0464,85967.0,85925.0,0.11944791]
[1745195324630,0.11944791,85949.0,85915.0,0.0089]
[1745195324840,0.01454085,85948.0,85915.0,0.0089]
[1745195324984,0.01454085,85946.0,85915.0,0.0089]
[1745195325191,0.44847288,85960.0,85916.0,1.14896]
[1745195325192,0.11944791,85945.0,85916.0,1.14896]
[1745195325400,0.11944791,85945.0,85917.0,0.00232762]
[1745195325819,0.11944791,85945.0,85917.0,0.34]
[1745195326171,0.11944791,85945.0,85916.0,1.14896]
[1745195326584,0.01454085,85944.0,85916.0,1.14896]
[1745195326796,0.11532758,85943.0,85917.0,0.34232773]
[1745195327006,0.11532758,85943.0,85916.0,1.14896]
[1745195327871,0.11532758,85943.0,85917.0,0.34]
[1745195328089,0.11532758,85943.0,85916.0,1.14896]
[1745195328090,0.01454085,85942.0,85916.0,1.14896]
[1745195328296,0.01454085,85937.0,85916.0,1.14896]
[1745195328513,0.11944791,85936.0,85916.0,1.14896]
[1745195328761,0.11944791,85936.0,85916.0,0.9954]
[1745195328966,0.11944791,85936.0,85917.0,0.4936]
[1745195329170,0.11944791,85936.0,85917.0,0.1536]
[1745195329872,0.01454085,85933.0,85917.0,0.1536]
[1745195330085,0.01454085,85931.0,85917.0,0.1536]
[1745195330297,0.11944791,85930.0,85917.0,0.1536]
[1745195330522,0.01454085,85928.0,85917.0,0.1536]
[1745195330780,0.01454085,85920.0,85914.0,0.00013432]
[1745195330985,0.01454085,85914.0,85912.0,0.15348]
[1745195331200,0.13398876,85913.0,85912.0,0.15361434]
[1745195331413,0.01454085,85912.0,85904.0,0.15348]
[1745195331657,0.01454085,85910.0,85904.0,0.15348]
[1745195331859,0.0471,85928.0,85904.0,0.15348]
[1745195332074,0.11944791,85927.0,85905.0,0.00232794]
[1745195332919,0.11944791,85927.0,85901.0,0.99601462]
[1745195333131,0.01454085,85917.0,85906.0,0.15348]
[1745195333344,0.01454085,85917.0,85907.0,0.15352]
[1745195333345,0.01454085,85912.0,85907.0,0.15352]
[1745195333560,0.05,85952.0,85901.0,0.99601462]
[1745195333790,0.11944791,85933.0,85908.0,0.15352]
[1745195334000,0.11944791,85933.0,85909.0,0.34]
[1745195334422,0.11944791,85933.0,85910.0,0.15352]
[1745195335081,0.11944791,85933.0,85911.0,0.34]
[1745195335296,0.004,85959.0,85911.0,0.45944791]
[1745195335515,0.11944791,85932.0,85911.0,0.34]
[1745195335729,0.004,85959.0,85913.0,0.34]
[1745195335955,0.11944791,85956.0,85915.0,0.34]
[1745195337031,0.09339412,85955.0,85915.0,0.34]
[1745195337246,0.01454085,85945.0,85910.0,0.15352]
[1745195337518,0.11944791,85944.0,85910.0,0.15352]
[1745195337765,0.11944791,85944.0,85911.0,0.1217756]
[1745195337975,0.09339412,85975.0,85920.0,0.44847288]
[1745195338184,0.09339412,85975.0,85922.0,0.11944791]
[1745195338402,0.09339412,85975.0,85923.0,0.00232675]
[1745195338610,0.09339412,85975.0,85930.0,0.11944791]
[1745195338818,0.09339412,85975.0,85930.0,0.56792079]
[1745195339242,0.09339412,85975.0,85930.0,0.11944791]
[1745195339387,0.09339412,85975.0,85930.0,0.12804006]
[1745195339595,0.09339412,85975.0,85930.0,0.11944791]
[1745195339797,0.09339412,85975.0,85930.0,0.11958253]
[1745195340356,0.09339412,85975.0,85931.0,0.00232675]
[1745195340564,0.09339412,85975.0,85933.0,0.34]
[1745195340762,0.09339412,85975.0,85935.0,0.34]
[1745195340962,0.44847288,85970.0,85935.0,0.34]
[1745195341075,0.09339412,85958.0,85935.0,0.34]
[1745195341503,0.11944791,85957.0,85936.0,0.15352]
[1745195343071,0.11944791,85957.0,85930.0,0.00013462]
[1745195343274,0.44847288,85940.0,85930.0,0.00013462]
[1745195343483,0.11944791,85939.0,85931.0,0.15352]
[1745195343679,0.11944791,85939.0,85930.0,0.00013462]
[1745195343884,0.11944791,85939.0,85931.0,0.15352]
[1745195344297,0.01454085,85931.0,85930.0,0.00013462]
[1745195344504,0.01454085,85931.0,85923.0,0.15352]
[1745195344505,0.01163819,85924.0,85923.0,0.15352]
[1745195344708,0.11944791,85924.0,85923.0,0.15352]
[1745195344920,0.0471,85949.0,85923.0,0.15352]
[1745195345157,0.11944791,85948.0,85923.0,0.15352]
[1745195345396,0.44847288,85940.0,85923.0,0.15352]
[1745195345619,0.0471,85949.0,85923.0,0.15352]
[1745195345620,0.11944791,85939.0,85923.0,0.15352]
[1745195345834,0.11944791,85939.0,85924.0,0.15352]
[1745195346031,0.11944791,85939.0,85915.0,0.99608]
[1745195346032,0.01454085,85938.0,85915.0,0.99608]
[1745195346241,0.01454085,85936.0,85916.0,0.15352]
[1745195346446,0.11944791,85935.0,85916.0,0.15352]
[1745195346665,0.0471,85949.0,85916.0,0.15352]
[1745195346874,0.11944791,85948.0,85917.0,0.00232764]
[1745195347484,0.11944791,85948.0,85917.0,0.34]
[1745195348721,0.11944791,85948.0,85919.0,0.34]
[1745195348937,0.00385823,85959.0,85921.0,0.34]
[1745195349151,0.00385823,85959.0,85921.0,0.45944791]
[1745195349532,0.00385823,85959.0,85926.0,0.34]
[1745195349741,0.00385823,85959.0,85941.0,0.34]
[1745195350042,0.0004222,85992.0,85940.0,0.44847288]
[1745195350043,0.0004222,85992.0,85947.0,0.34]
[1745195350300,0.0006221,85989.0,85956.0,0.11944791]
[1745195350611,0.0006221,85989.0,85961.0,0.34]
[1745195350818,0.0006221,85989.0,85963.0,0.34]
[1745195351035,0.09339412,85988.0,85962.0,0.99628]
[1745195351251,0.09339412,85988.0,85964.0,0.15352]
[1745195351489,0.09339412,85979.0,85962.0,0.99628]
[1745195351662,0.09339412,85979.0,85965.0,0.00232613]
[1745195352001,0.09339412,85979.0,85964.0,0.00232619]
[1745195353064,0.09339412,85979.0,85963.0,0.15352]
[1745195353271,0.09339412,85979.0,85962.0,0.99628]
[1745195353272,0.09339412,85979.0,85964.0,0.15352]
[1745195353474,0.0006221,85989.0,85965.0,0.0023263]
[1745195353679,0.22007001,85989.0,85965.0,0.0023263]
[1745195353913,0.1006221,85989.0,85966.0,0.11944791]